fUSD/lending_fUSD_20240523
["ID","MTS","AMOUNT","RATE_DAILY","PERIOD"]
[327812935,1716499840624,-500.0,0.00021917,2]
[327812936,1716499840634,-666.42,0.00021917,2]
[327812937,1716499840643,-1420.1,0.00021917,2]
[327812938,1716499840652,-500.0,0.00021917,2]
[327812939,1716499840662,-500.0,0.00021917,2]
[327812940,1716499840672,-500.0,0.00021917,2]
[327812941,1716499840681,-500.0,0.00021917,2]
[327812942,1716499840690,-500.0,0.00021917,2]
[327812943,1716499840700,-388.75403154,0.00021917,2]
[327812944,1716499840709,-500.0,0.00021917,2]
[327812945,1716499840719,-500.0,0.00021917,2]
[327812946,1716499840728,-500.0,0.00021917,2]
[327812947,1716499840742,-500.0,0.00021917,2]
[327812948,1716499840758,-500.0,0.00021917,2]
[327812949,1716499840767,-500.0,0.00021917,2]
[327812950,1716499840777,-500.0,0.00021917,2]
[327812951,1716499840788,-500.0,0.00021917,2]
[327812952,1716499840797,-500.0,0.00021917,2]
[327812953,1716499840807,-500.0,0.00021917,2]
[327812954,1716499840816,-2669.87,0.00021917,2]
[327812955,1716499840825,-500.93902765,0.00021917,2]
[327812956,1716499840835,-500.0,0.00021917,2]
[327812957,1716499840845,-500.0,0.00021917,2]
[327812958,1716499840855,-290.69000594,0.00021917,2]
[327812959,1716499840864,-500.0,0.00021917,2]
[327812960,1716499840873,-509.16219715,0.00021917,2]
[327812961,1716499840883,-526.51454224,0.00021917,2]
[327812962,1716499840892,-500.0,0.00021917,2]
[327812963,1716499840902,-500.0,0.00021917,2]
[327812964,1716499840911,-500.0,0.00021917,2]
[327812965,1716499840922,-535.3,0.00021917,2]
[327812966,1716499840932,-500.0,0.00021917,2]
[327812967,1716499840942,-500.0,0.00021917,2]
[327812968,1716499840951,-500.0,0.00021917,2]
[327812969,1716499840961,-500.0,0.00021917,2]
[327812970,1716499840970,-500.0,0.00021917,2]
[327812971,1716499840980,-500.0,0.00021917,2]
[327812972,1716499840989,-500.0,0.00021917,2]
[327812973,1716499840998,-500.0,0.00021917,2]
[327812974,1716499841008,-500.0,0.00021917,2]
[327812975,1716499841017,-538.23995772,0.00021917,2]
[327812976,1716499841026,-500.0,0.00021917,2]
[327812977,1716499841035,-794.74,0.00021917,2]
[327812978,1716499841045,-2760.06,0.00021917,2]
[327812979,1716499841054,-250.0,0.00021918,2]
[327812982,1716499841063,-2000.0,0.00021918,2]
[327812983,1716499841074,-474.75,0.00021918,2]
[327812984,1716499841082,-155.25,0.00021918,2]
[327812985,1716499841092,-531.08,0.00021999,2]
[327812986,1716499841103,-500.0,0.00021999,2]
[327812987,1716499841113,-7919.68147152,0.00022,2]
[327812988,1716499841126,-1237.26380006,0.00022,2]
[327812989,1716499841135,-154.23828543,0.00022083,2]
[327812990,1716499841144,-178.06496912,0.00022142,2]
[327812991,1716499841153,-1120.93170164,0.00022189,2]
[327812992,1716499841163,-155.0,0.00022189,2]
[327812993,1716499841172,-284.23133795,0.0002219,2]
[327812994,1716499841182,-366.3705281,0.0002219,2]
[327812995,1716499841191,-500.0,0.0002219,2]
[327812996,1716499841200,-500.0,0.00022191,2]
[327812997,1716499841209,-617.15,0.00022191,2]
[327812998,1716499841219,-648.64830781,0.00022191,2]
[327812999,1716499841228,-500.0,0.00022191,2]
[327813000,1716499841237,-500.0,0.00022191,2]
[327813001,1716499841247,-171.36248567,0.00022191,2]
[327813002,1716499841304,-382.92751433,0.00022191,2]
[327813003,1716499841314,-500.0,0.00022191,2]
[327813004,1716499841323,-500.0,0.00022191,2]
[327813005,1716499841333,-500.0,0.00022191,2]
[327813006,1716499841342,-500.0,0.00022191,2]
[327813007,1716499841353,-500.0,0.00022191,2]
[327813008,1716499841363,-500.0,0.00022191,2]
[327813009,1716499841372,-500.0,0.00022191,2]
[327813010,1716499841382,-598.3,0.00022191,2]
[327813011,1716499841391,-500.0,0.00022191,2]
[327813012,1716499841400,-601.14,0.00022191,2]
[327813013,1716499841410,-500.0,0.00022191,2]
[327813014,1716499841419,-500.0,0.00022191,2]
[327813015,1716499841429,-500.0,0.00022191,2]
[327813016,1716499841439,-500.0,0.00022191,2]
[327813017,1716499841448,-365.19229329,0.00022191,2]
[327813018,1716499841458,-511.55773195,0.00022191,2]
[327813019,1716499841467,-500.0,0.00022191,2]
[327813020,1716499841476,-500.0,0.00022191,2]
[327813021,1716499841485,-500.0,0.00022191,2]
[327813022,1716499841494,-500.0,0.00022191,2]
[327813023,1716499841504,-500.0,0.00022191,2]
[327813024,1716499841513,-647.82,0.00022191,2]
[327813025,1716499841522,-500.0,0.00022191,2]
[327813026,1716499841532,-500.0,0.00022191,2]
[327813027,1716499841541,-500.0,0.00022191,2]
[327813028,1716499841550,-515.76354169,0.00022191,2]
[327813029,1716499841560,-542.33,0.00022191,2]
[327813030,1716499841569,-500.0,0.00022191,2]
[327813031,1716499841578,-553.52171095,0.00022191,2]
[327813032,1716499841587,-500.0,0.00022191,2]
[327813033,1716499841596,-160.89324594,0.00022191,2]
[327813034,1716499841606,-500.0,0.00022191,2]
[327813035,1716499841615,-518.52279639,0.00022191,2]
[327813036,1716499841624,-616.80523821,0.00022191,2]
[327813037,1716499841633,-511.57103921,0.00022191,2]
[327813038,1716499841643,-500.0,0.00022191,2]
[327813039,1716499841652,-504.47748818,0.00022191,2]
[327813040,1716499841662,-521.66158145,0.00022191,2]
[327813041,1716499841671,-500.0,0.00022191,2]
[327813042,1716499841680,-517.49905502,0.00022191,2]
[327813043,1716499841690,-500.0,0.00022191,2]
[327813044,1716499841699,-500.0,0.00022191,2]
[327813045,1716499841708,-525.96,0.00022191,2]
[327813046,1716499841717,-500.0,0.00022191,2]
[327813047,1716499841727,-500.0,0.00022191,2]
[327813048,1716499841742,-470.45652158,0.00022191,2]
[327813049,1716499841751,-500.0,0.00022191,2]
[327813050,1716499841761,-500.0,0.00022191,2]
[327813051,1716499841771,-500.0,0.00022191,2]
[327813052,1716499841781,-533.81,0.00022191,2]
[327813053,1716499841790,-500.0,0.00022191,2]
[327813054,1716499841799,-500.0,0.00022191,2]
[327813055,1716499841808,-500.0,0.00022191,2]
[327813056,1716499841820,-500.0,0.00022191,2]
[327813057,1716499841831,-500.0,0.00022191,2]
[327813058,1716499841841,-500.0,0.00022191,2]
[327813059,1716499841852,-500.0,0.00022191,2]
[327813060,1716499841861,-500.0,0.00022191,2]
[327813061,1716499841870,-533.82850688,0.00022191,2]
[327813062,1716499841879,-510.01122468,0.00022191,2]
[327813063,1716499841888,-513.26781641,0.00022191,2]
[327813064,1716499841897,-500.0,0.00022191,2]
[327813065,1716499841906,-500.0,0.00022191,2]
[327813066,1716499841915,-517.78542349,0.00022191,2]
[327813067,1716499841925,-509.65368654,0.00022191,2]
[327813068,1716499841934,-500.0,0.00022191,2]
[327813069,1716499841943,-500.0,0.00022191,2]
[327813070,1716499841952,-500.0,0.00022191,2]
[327813071,1716499841962,-500.0,0.00022191,2]
[327813072,1716499841970,-604.97425699,0.00022191,2]
[327813073,1716499841980,-236.86532116,0.00022191,2]
[327813074,1716499841990,-500.0,0.00022191,2]
[327813075,1716499841998,-534.82495365,0.00022191,2]
[327813076,1716499842008,-500.0,0.00022191,2]
[327813077,1716499842017,-500.0,0.00022191,2]
[327813078,1716499842026,-532.11489058,0.00022191,2]
[327813079,1716499842036,-500.0,0.00022191,2]
[327813080,1716499842045,-500.0,0.00022191,2]
[327813081,1716499842054,-500.0,0.00022191,2]
[327813082,1716499842063,-500.0,0.00022191,2]
[327813083,1716499842073,-500.0,0.00022191,2]
[327813084,1716499842082,-500.0,0.00022191,2]
[327813085,1716499842091,-500.0,0.00022191,2]
[327813086,1716499842107,-500.0,0.00022191,2]
[327813087,1716499842116,-500.0,0.00022191,2]
[327813088,1716499842126,-500.0,0.00022191,2]
[327813089,1716499842135,-500.0,0.00022191,2]
[327813090,1716499842144,-500.0,0.00022191,2]
[327813091,1716499842153,-500.0,0.00022191,2]
[327813092,1716499842162,-596.21471718,0.00022191,2]
[327813093,1716499842171,-500.0,0.00022191,2]
[327813094,1716499842180,-591.93675755,0.00022191,2]
[327813095,1716499842189,-500.0,0.00022191,2]
[327813096,1716499842198,-500.0,0.00022191,2]
[327813097,1716499842207,-500.0,0.00022191,2]
[327813098,1716499842216,-513.04627317,0.00022191,2]
[327813099,1716499842226,-500.0,0.00022191,2]
[327813100,1716499842235,-500.0,0.00022191,2]
[327813101,1716499842244,-500.0,0.00022191,2]
[327813102,1716499842253,-500.0,0.00022191,2]
[327813103,1716499842263,-500.0,0.00022191,2]
[327813104,1716499842272,-258.22856271,0.00022191,2]
[327813105,1716499842281,-533.46,0.00022191,2]
[327813106,1716499842290,-599.32007413,0.00022191,2]
[327813107,1716499842299,-500.0,0.00022191,2]
[327813108,1716499842309,-500.0,0.00022191,2]
[327813109,1716499842318,-500.0,0.00022191,2]
[327813110,1716499842327,-500.0,0.00022191,2]
[327813111,1716499842339,-500.0,0.00022191,2]
[327813112,1716499842353,-500.0,0.00022191,2]
[327813113,1716499842362,-500.0,0.00022191,2]
[327813114,1716499842371,-500.0,0.00022191,2]
[327813115,1716499842380,-500.0,0.00022191,2]
[327813116,1716499842390,-500.0,0.00022191,2]
[327813117,1716499842399,-500.0,0.00022191,2]
[327813118,1716499842408,-500.0,0.00022191,2]
[327813119,1716499842417,-500.0,0.00022191,2]
[327813120,1716499842427,-500.0,0.00022191,2]
[327813121,1716499842436,-500.0,0.00022191,2]
[327813122,1716499842445,-500.0,0.00022191,2]
[327813123,1716499842455,-500.0,0.00022191,2]
[327813124,1716499842464,-500.0,0.00022191,2]
[327813125,1716499842473,-500.0,0.00022191,2]
[327813126,1716499842482,-500.0,0.00022191,2]
[327813127,1716499842492,-500.0,0.00022191,2]
[327813128,1716499842501,-500.0,0.00022191,2]
[327813129,1716499842511,-500.0,0.00022191,2]
[327813130,1716499842520,-500.0,0.00022191,2]
[327813131,1716499842530,-500.0,0.00022191,2]
[327813132,1716499842539,-500.0,0.00022191,2]
[327813133,1716499842548,-500.0,0.00022191,2]
[327813134,1716499842558,-500.0,0.00022191,2]
[327813135,1716499842567,-500.0,0.00022191,2]
[327813136,1716499842576,-500.0,0.00022191,2]
[327813137,1716499842586,-500.0,0.00022191,2]
[327813138,1716499842598,-500.0,0.00022191,2]
[327813139,1716499842607,-500.0,0.00022191,2]
[327813140,1716499842616,-500.0,0.00022191,2]
[327813141,1716499842626,-500.0,0.00022191,2]
[327813142,1716499842635,-500.0,0.00022191,2]
[327813143,1716499842644,-561.22445149,0.00022191,2]
[327813144,1716499842653,-580.52183964,0.00022191,2]
[327813145,1716499842663,-500.0,0.00022191,2]
[327813146,1716499842672,-500.0,0.00022191,2]
[327813147,1716499842681,-500.0,0.00022191,2]
[327813148,1716499842691,-500.0,0.00022191,2]
[327813149,1716499842700,-500.0,0.00022191,2]
[327813150,1716499842709,-500.0,0.00022191,2]
[327813151,1716499842718,-500.0,0.00022191,2]
[327813152,1716499842728,-500.0,0.00022191,2]
[327813153,1716499842742,-500.0,0.00022191,2]
[327813154,1716499842751,-500.0,0.00022191,2]
[327813155,1716499842761,-500.0,0.00022191,2]
[327813156,1716499842771,-500.0,0.00022191,2]
[327813157,1716499842781,-500.0,0.00022191,2]
[327813158,1716499842790,-500.0,0.00022191,2]
[327813159,1716499842800,-500.0,0.00022191,2]
[327813160,1716499842809,-500.0,0.00022191,2]
[327813161,1716499842819,-500.0,0.00022191,2]
[327813162,1716499842830,-500.0,0.00022191,2]
[327813163,1716499842840,-500.0,0.00022191,2]
[327813164,1716499842852,-500.0,0.00022191,2]
[327813165,1716499842863,-500.0,0.00022191,2]
[327813166,1716499842872,-177.74963785,0.00022191,2]
[327813168,1716499842882,-516.88000977,0.00022191,2]
[327813170,1716499842891,-500.0,0.00022191,2]
[327813171,1716499842901,-208.16,0.00022191,2]
[327813172,1716499842910,-500.0,0.00022191,2]
[327813173,1716499842919,-500.0,0.00022191,2]
[327813175,1716499842928,-512.81686192,0.00022191,2]
[327813176,1716499842938,-432.82,0.00022191,2]
[327813177,1716499842947,-500.0,0.00022191,2]
[327813178,1716499842956,-500.0,0.00022191,2]
[327813179,1716499842966,-500.0,0.00022191,2]
[327813180,1716499842975,-500.0,0.00022191,2]
[327813181,1716499842985,-500.0,0.00022191,2]
[327813182,1716499842994,-500.0,0.00022191,2]
[327813183,1716499843004,-500.0,0.00022191,2]
[327813184,1716499843013,-500.0,0.00022191,2]
[327813185,1716499843022,-500.0,0.00022191,2]
[327813186,1716499843031,-500.0,0.00022191,2]
[327813187,1716499843040,-500.0,0.00022191,2]
[327813188,1716499843049,-500.0,0.00022191,2]
[327813189,1716499843059,-472.91,0.00022191,2]
[327813190,1716499843068,-500.0,0.00022191,2]
[327813191,1716499843077,-500.0,0.00022191,2]
[327813192,1716499843087,-500.0,0.00022191,2]
[327813193,1716499843100,-500.0,0.00022191,2]
[327813194,1716499843109,-500.0,0.00022191,2]
[327813195,1716499843118,-500.0,0.00022191,2]
[327813196,1716499843128,-500.0,0.00022191,2]
[327813197,1716499843137,-500.0,0.00022191,2]
[327813198,1716499843147,-500.0,0.00022191,2]
[327813199,1716499843157,-500.0,0.00022191,2]
[327813200,1716499843166,-30.53981193,0.00022191,2]
[327813210,1716499843522,-469.46018807,0.00022191,2]
[327813213,1716499843532,-207.66728421,0.00022191,2]
[327813216,1716499843544,-292.33271579,0.00022191,2]
[327813219,1716499843554,-500.0,0.00022191,2]
[327813221,1716499843563,-513.83,0.00022191,2]
[327813222,1716499843573,-500.0,0.00022191,2]
[327813224,1716499843582,-641.67,0.00022191,2]
[327813226,1716499843592,-500.0,0.00022191,2]
[327813227,1716499843604,-277.80304283,0.00022191,2]
[327813228,1716499843614,-160.36677317,0.00022191,2]
[327813229,1716499843626,-339.63322683,0.00022191,2]
[327813230,1716499843635,-500.0,0.00022191,2]
[327813231,1716499843645,-500.0,0.00022191,2]
[327813232,1716499843654,-500.0,0.00022191,2]
[327813233,1716499843664,-500.0,0.00022191,2]
[327813234,1716499843673,-500.0,0.00022191,2]
[327813235,1716499843683,-500.0,0.00022191,2]
[327813236,1716499843692,-627.64865268,0.00022191,2]
[327813237,1716499843701,-500.0,0.00022191,2]
[327813238,1716499843711,-245.6965138,0.00022191,2]
[327813239,1716499843723,-254.3034862,0.00022191,2]
[327813240,1716499843732,-553.0619203,0.00022191,2]
[327813241,1716499843744,-702.69636858,0.00022191,2]
[327813242,1716499844010,-310.72,0.00022191,2]
[327813243,1716499844023,-839.62363142,0.00022191,2]
[327813244,1716499844034,-392.31832345,0.00022191,2]
[327813245,1716499844044,-500.0,0.00022191,2]
[327813246,1716499844053,-500.0,0.00022191,2]
[327813247,1716499844063,-491.74163387,0.00022191,2]
[327813248,1716499844074,-8.25836613,0.00022191,2]
[327813249,1716499844084,-398.51506367,0.00022191,2]
[327813250,1716499844103,-101.48493633,0.00022191,2]
[327813251,1716499844113,-202.20444967,0.00022191,2]
[327813252,1716499844124,-280.26021866,0.00022191,2]
[327813253,1716499844136,-464.88533167,0.00022191,2]
[327813254,1716499844146,-500.0,0.00022191,2]
[327813255,1716499844155,-500.0,0.00022191,2]
[327813256,1716499844165,-13.64666833,0.00022191,2]
[327813257,1716499844177,-517.65333167,0.00022191,2]
[327813258,1716499844186,-323.0637424,0.00022191,2]
[327813259,1716499844198,-176.9362576,0.00022191,2]
[327813260,1716499844208,-500.0,0.00022191,2]
[327813261,1716499844217,-500.0,0.00022191,2]
[327813264,1716499844227,-500.0,0.00022191,2]
[327813267,1716499844238,-500.0,0.00022191,2]
[327813270,1716499844248,-500.0,0.00022191,2]
[327813273,1716499844257,-392.62850384,0.00022191,2]
[327813276,1716499844266,-613.02500676,0.00022191,2]
[327813279,1716499844277,-500.0,0.00022191,2]
[327813281,1716499844287,-500.0,0.00022191,2]
[327813283,1716499844296,-500.0,0.00022191,2]
[327813285,1716499844306,-500.0,0.00022191,2]
[327813287,1716499844315,-500.0,0.00022191,2]
[327813290,1716499844325,-500.0,0.00022191,2]
[327813292,1716499844335,-611.68464686,0.00022191,2]
[327813294,1716499844344,-500.0,0.00022191,2]
[327813296,1716499844356,-641.05,0.00022191,2]
[327813298,1716499844366,-500.0,0.00022191,2]
[327813300,1716499844375,-571.48,0.00022191,2]
[327813302,1716499844385,-500.0,0.00022191,2]
[327813304,1716499844394,-516.3497933,0.00022191,2]
[327813306,1716499844404,-508.38853954,0.00022191,2]
[327813308,1716499844413,-363.15725211,0.00022191,2]
[327813311,1716499844426,-136.84274789,0.00022191,2]
[327813313,1716499844435,-506.95727964,0.00022191,2]
[327813315,1716499844445,-500.0,0.00022191,2]
[327813317,1716499844455,-500.0,0.00022191,2]
[327813319,1716499844465,-500.0,0.00022191,2]
[327813321,1716499844474,-500.0,0.00022191,2]
[327813323,1716499844484,-500.0,0.00022191,2]
[327813325,1716499844495,-500.0,0.00022191,2]
[327813327,1716499844505,-242.05628858,0.00022191,2]
[327813329,1716499844518,-257.94371142,0.00022191,2]
[327813331,1716499844528,-500.0,0.00022191,2]
[327813333,1716499844539,-500.0,0.00022191,2]
[327813335,1716499844548,-500.0,0.00022191,2]
[327813337,1716499844559,-262.51180914,0.00022191,2]
[327813339,1716499844568,-511.48008174,0.00022191,2]
[327813341,1716499844578,-500.0,0.00022191,2]
[327813343,1716499844588,-1424.71,0.00022191,2]
[327813344,1716499844601,-500.0,0.00022191,2]
[327813346,1716499844611,-500.0,0.00022191,2]
[327813348,1716499844621,-500.0,0.00022191,2]
[327813351,1716499844631,-622.33,0.00022191,2]
[327813352,1716499844641,-500.0,0.00022191,2]
[327813355,1716499844651,-624.10420388,0.00022191,2]
[327813357,1716499844662,-500.0,0.00022191,2]
[327813359,1716499844672,-500.0,0.00022191,2]
[327813361,1716499844683,-500.0,0.00022191,2]
[327813363,1716499844693,-500.0,0.00022191,2]
[327813364,1716499844704,-500.0,0.00022191,2]
[327813367,1716499844716,-500.0,0.00022191,2]
[327813368,1716499844727,-500.0,0.00022191,2]
[327813371,1716499844739,-205.31719382,0.00022191,2]
[327813373,1716499844755,-294.68280618,0.00022191,2]
[327813375,1716499844765,-700.01,0.00022191,2]
[327813377,1716499844776,-500.0,0.00022191,2]
[327813379,1716499844787,-373.23407189,0.00022191,2]
[327813381,1716499844800,-126.76592811,0.00022191,2]
[327813383,1716499844809,-123.54478964,0.00022191,2]
[327813386,1716499844822,-258.02483709,0.00022191,2]
[327813387,1716499844834,-500.0,0.00022191,2]
[327813389,1716499844845,-301.02310689,0.00022191,2]
[327813392,1716499844858,-198.97689311,0.00022191,2]
[327813393,1716499844868,-500.0,0.00022191,2]
[327813395,1716499844879,-500.0,0.00022191,2]
[327813398,1716499844890,-500.0,0.00022191,2]
[327813400,1716499844900,-500.0,0.00022191,2]
[327813402,1716499844910,-500.0,0.00022191,2]
[327813404,1716499844920,-500.0,0.00022191,2]
[327813406,1716499844930,-500.0,0.00022191,2]
[327813407,1716499844940,-500.0,0.00022191,2]
[327813409,1716499844950,-500.0,0.00022191,2]
[327813412,1716499844960,-500.0,0.00022191,2]
[327813414,1716499844971,-500.0,0.00022191,2]
[327813416,1716499844981,-500.0,0.00022191,2]
[327813418,1716499844991,-500.0,0.00022191,2]
[327813419,1716499844999,-500.0,0.00022191,2]
[327813421,1716499845008,-500.0,0.00022191,2]
[327813423,1716499845018,-500.0,0.00022191,2]
[327813425,1716499845028,-500.0,0.00022191,2]
[327813427,1716499845038,-500.0,0.00022191,2]
[327813429,1716499845048,-500.0,0.00022191,2]
[327813431,1716499845059,-506.77,0.00022191,2]
[327813433,1716499845069,-500.0,0.00022191,2]
[327813435,1716499845079,-500.0,0.00022191,2]
[327813437,1716499845088,-500.0,0.00022191,2]
[327813439,1716499845099,-500.0,0.00022191,2]
[327813441,1716499845109,-617.56,0.00022191,2]
[327813443,1716499845119,-500.0,0.00022191,2]
[327813445,1716499845129,-500.0,0.00022191,2]
[327813447,1716499845139,-500.0,0.00022191,2]
[327813449,1716499845150,-500.0,0.00022191,2]
[327813451,1716499845160,-817.42,0.00022191,2]
[327813453,1716499845170,-500.0,0.00022191,2]
[327813455,1716499845180,-500.0,0.00022191,2]
[327813457,1716499845190,-533.02,0.00022191,2]
[327813459,1716499845200,-500.0,0.00022191,2]
[327813461,1716499845210,-500.0,0.00022191,2]
[327813463,1716499845220,-353.20791791,0.00022191,2]
[327813478,1716499845371,-146.79208209,0.00022191,2]
[327813480,1716499845382,-568.24,0.00022191,2]
[327813482,1716499845392,-500.0,0.00022191,2]
[327813484,1716499845404,-500.0,0.00022191,2]
[327813486,1716499845414,-500.0,0.00022191,2]
[327813488,1716499845425,-500.0,0.00022191,2]
[327813491,1716499845436,-1470.88,0.00022191,2]
[327813493,1716499845446,-500.0,0.00022191,2]
[327813494,1716499845456,-758.14578018,0.00022191,2]
[327813500,1716499845766,-499.50421982,0.00022191,2]
[327813501,1716499845776,-500.0,0.00022191,2]
[327813502,1716499845787,-500.0,0.00022191,2]
[327813503,1716499845796,-500.0,0.00022191,2]
[327813504,1716499845805,-500.0,0.00022191,2]
[327813505,1716499845814,-500.0,0.00022191,2]
[327813506,1716499845827,-500.0,0.00022191,2]
[327813507,1716499845837,-500.0,0.00022191,2]
[327813508,1716499845849,-500.0,0.00022191,2]
[327813509,1716499845858,-500.0,0.00022191,2]
[327813510,1716499845867,-225.14,0.00022191,2]
[327813511,1716499845877,-500.0,0.00022191,2]
[327813512,1716499845886,-500.0,0.00022191,2]
[327813513,1716499845896,-500.0,0.00022191,2]
[327813514,1716499845905,-500.0,0.00022191,2]
[327813515,1716499845915,-500.0,0.00022191,2]
[327813516,1716499845924,-500.0,0.00022191,2]
[327813517,1716499845933,-325.23,0.00022191,2]
[327813518,1716499845942,-500.0,0.00022191,2]
[327813519,1716499845951,-500.0,0.00022191,2]
[327813520,1716499845961,-500.0,0.00022191,2]
[327813521,1716499845970,-1069.08,0.00022191,2]
[327813522,1716499845979,-500.0,0.00022191,2]
[327813523,1716499845989,-500.0,0.00022191,2]
[327813524,1716499845998,-500.0,0.00022191,2]
[327813525,1716499846008,-598.16,0.00022191,2]
[327813526,1716499846018,-397.08638018,0.00022191,2]
[327813527,1716499846030,-102.91361982,0.00022191,2]
[327813528,1716499846039,-500.0,0.00022191,2]
[327813529,1716499846048,-500.0,0.00022191,2]
[327813530,1716499846058,-500.0,0.00022191,2]
[327813531,1716499846067,-1053.43,0.00022191,2]
[327813532,1716499846076,-500.0,0.00022191,2]
[327813533,1716499846086,-500.0,0.00022191,2]
[327813534,1716499846095,-500.0,0.00022191,2]
[327813535,1716499846107,-500.0,0.00022191,2]
[327813536,1716499846116,-500.0,0.00022191,2]
[327813537,1716499846125,-500.0,0.00022191,2]
[327813538,1716499846134,-666.42,0.00022191,2]
[327813539,1716499846144,-1420.1,0.00022191,2]
[327813540,1716499846153,-628.74701043,0.00022191,2]
[327813541,1716499846162,-500.0,0.00022191,2]
[327813542,1716499846172,-500.0,0.00022191,2]
[327813543,1716499846181,-500.0,0.00022191,2]
[327813544,1716499846191,-500.0,0.00022191,2]
[327813545,1716499846200,-500.0,0.00022191,2]
[327813546,1716499846210,-500.0,0.00022191,2]
[327813547,1716499846220,-500.0,0.00022191,2]
[327813548,1716499846229,-500.0,0.00022191,2]
[327813549,1716499846239,-500.0,0.00022191,2]
[327813550,1716499846248,-500.0,0.00022191,2]
[327813551,1716499846258,-500.0,0.00022191,2]
[327813552,1716499846267,-644.77,0.00022191,2]
[327813553,1716499846277,-1094.80145992,0.00022191,2]
[327813554,1716499846289,-1575.06854008,0.00022191,2]
[327813555,1716499846299,-500.0,0.00022191,2]
[327813556,1716499846309,-500.0,0.00022191,2]
[327813557,1716499846319,-500.0,0.00022191,2]
[327813558,1716499846328,-535.3,0.00022191,2]
[327813559,1716499846337,-500.0,0.00022191,2]
[327813560,1716499846347,-500.0,0.00022191,2]
[327813561,1716499846359,-500.0,0.00022191,2]
[327813563,1716499846414,-500.0,0.00022191,2]
[327813566,1716499846423,-500.0,0.00022191,2]
[327813569,1716499846433,-794.74,0.00022191,2]
[327813572,1716499846442,-2760.06,0.00022191,2]
[327813574,1716499846451,-157.47813498,0.00022289,2]
[327813577,1716499846460,-151.0,0.00022315,3]
[327813580,1716499846470,-1191.01,0.00022343,2]
[327813582,1716499846479,-154.87112492,0.00022345,2]
[327813585,1716499846489,-158.32580983,0.00022368,2]
[327813588,1716499846498,-163.89479298,0.00022388,2]
[327813591,1716499846507,-154.56503789,0.00022401,2]
[327813593,1716499846517,-154.23828543,0.00022405,2]
[327813596,1716499846526,-1110.58,0.00022431,2]
[327813599,1716499846535,-162.87102827,0.00022455,2]
[327813602,1716499846544,-161.44222683,0.00022457,2]
[327813604,1716499846554,-158.32580983,0.00022461,2]
[327813607,1716499846563,-178.23760243,0.00022464,2]
[327813608,1716499846573,-500.0,0.00022464,2]
[327813610,1716499846582,-278.8124365,0.00022464,2]
[327813612,1716499846592,-509.8146056,0.00022464,2]
[327813614,1716499846603,-187.0,0.00022465,2]
[327813616,1716499846613,-500.0,0.00022465,2]
[327813618,1716499846623,-160.7,0.00022465,2]
[327813621,1716499846632,-460.96626357,0.00022465,2]
[327813624,1716499846644,-500.0,0.00022465,2]
[327813627,1716499846654,-500.0,0.00022465,2]
[327813630,1716499846663,-500.0,0.00022465,2]
[327813633,1716499846672,-262.24,0.00022465,2]